Cogmind - Beta 15 @@@ ROGUE MODE // 2025.10.08 @ 16:37:40 Player: DietSnapple Result: Destroyed by exploding Power Conduit Performance ------------- Evolutions (5) 2500 Regions Visited (12) 2400 Robots Destroyed (75) 375 Value Destroyed (2649) 2649 Prototype IDs (36) 720 Alien Tech Used (0) 0 Bonus (403) 403 TOTAL SCORE: 9047 Bonus ------- Follower Combat Kills 103 Aligned with FarCom 300 Cogmind --------- Core Integrity 0/1000 Matter 25/300 Energy 99/100 System Corruption 2% Temperature Cool (24) Movement Core (50) Location -5/Factory Parts ------- > --- POWER (1) -------- (None) > --- PROPULSION (6) --- (None) > --- UTILITY (8) ------ Machine Analyzer > --- WEAPON (2) ------- (None) > --- INVENTORY (5) ---- Wheel Hardened Light Armor Plating Force Field Gauss Rifle Peak State ------------ > --- POWER ------------ Enhanced Nuclear Core > --- PROPULSION ------- Cooled VTOL Module Cooled VTOL Module Cooled VTOL Module > --- UTILITY ---------- High-capacity Storage Unit Structural Scanner Signal Interpreter Hacking Suite Hacking Suite Trap Reconfigurator > --- WEAPON ----------- High-powered Shotgun Advanced Assault Cannon > --- INVENTORY -------- Deuterium Engine Wheel Improved Heat Sink Improved Heat Sink Small Storage Unit Medium Storage Unit Large Storage Unit Advanced Weight Redist. System Improved Terrain Scan Processor Heavy EM Pulse Gun Pulse Rifle Plasma Cannon Minigun Minigun Minigun Gauss Cannon Grenade Launcher [Rating: 49] Favorites ----------- Power Ion Engine Engine Ion Engine Power Core Enhanced Nuclear Core Propulsion Light Treads Treads Light Treads Leg Aluminum Leg Wheel Armored Huge Wheel Flight Unit Cooled VTOL Module Utility Signal Interpreter Device Heat Sink Storage High-capacity Storage Unit Processor Signal Interpreter Hackware Hacking Suite Protection Hardened Medium Armor Plating Weapon Beam Cannon Energy Gun Heavy EM Pulse Gun Energy Cannon Beam Cannon Ballistic Gun Gauss Rifle Ballistic Cannon Advanced Assault Cannon Launcher Grenade Launcher Build | -11 -10 -10 -10 -9 -8 -7 -7 -7 -6 -6 -6 -5 ------- Run | Yrd Mat Min Exi Min Mat Fac Was Fac Fac Ext Cet Fac Slots Evolved 10 | . . . . . 4 2 . . 2 . . 2 Power . | . . . . . . . . . . . . . Propulsion 4 | . . . . . 1 1 . . 1 . . 1 Utility 6 | . . . . . 3 1 . . 1 . . 1 Weapon . | . . . . . . . . . . . . . Parts Attached 86 | 6 7 . 1 1 29 19 . 9 8 4 . 2 Power 10 | 1 . . . . 5 1 . 1 1 1 . . Engine 6 | 1 . . . . 5 . . . . . . . Core 4 | . . . . . . 1 . 1 1 1 . . Reactor . | . . . . . . . . . . . . . Propulsion 21 | 2 1 . . . 7 5 . 2 2 1 . 1 Treads 4 | 2 1 . . . . . . . . 1 . . Leg 3 | . . . . . 3 . . . . . . . Wheel 7 | . . . . . 4 2 . . . . . 1 Hover . | . . . . . . . . . . . . . Flight 7 | . . . . . . 3 . 2 2 . . . Utility 34 | 1 2 . 1 1 10 10 . 6 2 . . 1 Device 12 | . 2 . . . 3 5 . . 2 . . . Storage 5 | 1 . . 1 1 1 1 . . . . . . Processor 3 | . . . . . 2 . . . . . . 1 Hackware 6 | . . . . . . 2 . 4 . . . . Protection 8 | . . . . . 4 2 . 2 . . . . Artifact . | . . . . . . . . . . . . . Weapon 21 | 2 4 . . . 7 3 . . 3 2 . . Energy Gun 2 | . . . . . 2 . . . . . . . Energy Cannon 6 | . 2 . . . 4 . . . . . . . Ballistic Gun 8 | 2 1 . . . 1 1 . . 3 . . . Ballistic Cannon 4 | . . . . . . 2 . . . 2 . . Launcher 1 | . 1 . . . . . . . . . . . Special Weapon . | . . . . . . . . . . . . . Impact Weapon . | . . . . . . . . . . . . . Slashing Weapon . | . . . . . . . . . . . . . Piercing Weapon . | . . . . . . . . . . . . . Special Melee Weapon . | . . . . . . . . . . . . . Unidentified Prototypes 3 | . . . . . . 2 . 1 . . . . Parts Lost 39 | . . . . . 13 13 . 1 2 8 1 1 Power 5 | . . . . . 2 1 . 1 . 1 . . Propulsion 10 | . . . . . 3 3 . . . 4 . . Utility 17 | . . . . . 6 6 . . 1 3 . 1 Weapon 7 | . . . . . 2 3 . . 1 . 1 . Highest Loss Streak 8 | . . . . . 3 8 . 1 2 8 1 1 To Critical Strikes 1 | . . . . . . 1 . . . . . . Average Backups 8 | 2 7 7 8 8 11 11 5 2 3 4 5 4 Power . | . 1 1 1 1 1 . . . . . . . Propulsion . | 1 1 . . . . . . . . . . . Utility 4 | . 2 4 6 6 5 5 5 2 2 3 4 2 Weapon 2 | . 2 1 1 1 3 4 . . 1 . 1 1 Tool/Special . | . . . . . . . . . . . . . Unused Backups 16 | . 4 1 1 . 1 7 . . . 1 . 1 Power 2 | . . . . . 1 1 . . . . . . Propulsion 2 | . 2 . . . . . . . . . . . Utility 5 | . . . 1 . . 2 . . . 1 . 1 Weapon 7 | . 2 1 . . . 4 . . . . . . Tool/Special . | . . . . . . . . . . . . . Average Slot Usage (%) 78 | . 97 100 100 100 82 83 . 37 65 38 23 5 Engine 7 | . 14 14 14 14 8 2 . . . . . . Core 1 | . . . . . . 4 . 1 5 3 4 . Treads 10 | . 28 28 28 28 4 . . . . 2 4 . Wheel 5 | . . . . . 11 13 . . . . . . Flight 3 | . . . . . . 8 . 7 18 8 . . Device 11 | . 12 14 14 14 7 20 . . 3 . . 2 Storage 8 | . 14 14 14 14 9 4 . . . . . . Processor 4 | . . . . . 9 6 . . . . . 2 Hackware 3 | . . . . . . 5 . 22 26 13 4 . Protection 4 | . . . . . 14 2 . 4 3 . . . Energy Gun 1 | . . . . . 5 . . . . . . . Energy Cannon 11 | . 21 28 28 28 11 2 . . . . . . Ballistic Gun 2 | . 4 . . . . 6 . . 5 4 . . Ballistic Cannon 1 | . . . . . . 4 . . . 3 9 . Peak Build Rating 49 | 6 8 8 9 9 36 49 1 26 46 39 23 9 Average Rating 21 | 4 7 8 8 9 25 41 1 16 36 21 17 5 On Entrance 12 | . 6 8 8 9 9 26 1 1 26 39 23 1 Naked Turns 270 | . . . . . . 13 54 . . . 13 190 Heaviest Build 81 | 12 17 17 52 52 81 72 . 8 13 22 22 5 Greatest Support 57 | 40 40 40 40 40 44 57 3 11 19 30 30 3 Greatest Overweight (x) 4 | . . . 1 1 4 3 . . 1 1 . 1 Average Overweight (x) . | . . . . . 1 . . . . . . . Largest Inventory Capacity 20 | 8 8 8 20 20 20 20 5 5 5 5 5 8 Average Capacity 11 | 6 8 8 11 18 18 13 5 5 5 5 5 5 Most Carried 20 | 4 8 8 8 8 17 20 5 4 5 5 5 5 Average Carried 8 | 2 7 7 7 8 11 11 5 2 3 4 5 4 Final Capacity 20 | 8 8 8 20 15 20 5 5 5 5 5 5 5 Final Carried 17 | 4 8 8 8 8 17 5 5 1 4 5 5 4 Class Distribution -------------------- 68% | Mutant 11% | Scavenger-Mutant 9% | Hacker-Sprinter 5% | Hacker-Mutant 3% | Scout Dominant Class ---------------- Mutant | -10/Materials Mutant | -10/Mines Mutant | -10/Exiles Mutant | -9/Mines Mutant | -8/Materials Scavenger-Mutant | -7/Factory Mutant | -7/Waste Hacker-Mutant | -7/Factory Hacker-Mutant | -6/Factory Mutant | -6/Extension Mutant | -6/Cetus Scout | -5/Factory Resources | -11 -10 -10 -10 -9 -8 -7 -7 -7 -6 -6 -6 -5 ----------- Run | Yrd Mat Min Exi Min Mat Fac Was Fac Fac Ext Cet Fac Matter Collected 1684 | 218 164 . . 20 421 470 . 209 154 2 . 26 Remotely . | . . . . . . . . . . . . . Salvage Created 2947 | . 405 84 . . 1596 816 . . 46 . . . Parts 162 | . 33 1 . . 80 43 . . 5 . . . Haulers Intercepted 3 | . 1 . . . . 2 . . . . . . Recyclers Shooed 1 | . . . . . . . . . 1 . . . Parts Field Recycled . | . . . . . . . . . . . . . Retrieved Matter . | . . . . . . . . . . . . . Parts Self-Destructed . | . . . . . . . . . . . . . Prevented . | . . . . . . . . . . . . . Kills | -11 -10 -10 -10 -9 -8 -7 -7 -7 -6 -6 -6 -5 ------- Run | Yrd Mat Min Exi Min Mat Fac Was Fac Fac Ext Cet Fac Combat Hostiles Destroyed 57 | . 9 2 . . 29 15 . . 2 . . . Guns 17 | . 4 . . . 5 6 . . 2 . . . Cannons 38 | . 5 2 . . 22 9 . . . . . . Classes Destroyed 13 | . 5 . . . 5 3 . . . . . . Worker 4 | . 1 . . . 2 1 . . . . . . Tunneler 2 | . . . . . 2 . . . . . . . Hauler 3 | . 1 . . . . 2 . . . . . . Recycler 2 | . . . . . 1 1 . . . . . . Operator 6 | . 3 . . . 1 2 . . . . . . Watcher 1 | . . . . . . 1 . . . . . . Swarmer 8 | . 3 . . . 3 . . . 2 . . . Grunt 34 | . 6 2 . . 18 8 . . . . . . Duelist 3 | . . . . . 2 1 . . . . . . Sentry 5 | . . . . . 4 1 . . . . . . Specialist 2 | . . . . . 2 . . . . . . . Hunter 1 | . . . . . . 1 . . . . . . Programmer 4 | . . . . . . 4 . . . . . . Best Kill Streak 8 | . 3 2 . . 8 5 . . 2 . . . Combat Bots Only 8 | . 3 2 . . 8 4 . . 2 . . . Max Kills in Single Turn 2 | . 1 1 . . 2 1 . . 1 . . . Gunslinging . | . . . . . . . . . . . . . Exploded . | . . . . . . . . . . . . . Melee . | . . . . . . . . . . . . . Uniques/NPCs Destroyed . | . . . . . . . . . . . . . Combat | -11 -10 -10 -10 -9 -8 -7 -7 -7 -6 -6 -6 -5 -------- Run | Yrd Mat Min Exi Min Mat Fac Was Fac Fac Ext Cet Fac Hostile Shots Fired 764 | . 55 5 . . 184 310 . 15 29 86 27 53 Missed 312 | . 20 1 . . 39 164 . 9 14 36 11 18 Hits 452 | . 35 4 . . 145 146 . 6 15 50 16 35 Melee 6 | . . . . . 4 2 . . . . . . Projectile 446 | . 35 4 . . 141 144 . 6 15 50 16 35 AOE 1 | . . . . . . . . . . . . 1 Critical Strikes 23 | . 1 . . . 12 2 . . . 3 1 4 Damage Taken 7543 | . 372 55 . . 2336 1971 . 112 350 844 423 1080 Core 2733 | . 91 11 . . 224 628 . 42 146 507 51 1033 Absorbed by Shields 28 | . . . . . . 28 . . . . . . Regen/Repaired (Parts) 35 | . . . . . 35 . . . . . . . Core Remaining (%) 47 | 100 . . . 59 59 . . 4 . . 17 . Volleys Fired 228 | . 35 4 . . 99 82 . . 8 . . . Largest 2 | . 2 2 . . 2 2 . . 2 . . . Hottest 160 | . 120 120 . . 160 108 . . 56 . . . Shots Fired 436 | . 70 8 . . 194 155 . . 9 . . . Gun 178 | . 42 . . . 52 75 . . 9 . . . Cannon 258 | . 28 8 . . 142 80 . . . . . . Launcher . | . . . . . . . . . . . . . Special . | . . . . . . . . . . . . . Kinetic 178 | . 42 . . . 8 119 . . 9 . . . Thermal 214 | . 28 8 . . 142 36 . . . . . . Explosive . | . . . . . . . . . . . . . Electromagnetic 44 | . . . . . 44 . . . . . . . Robot Hit Streak 15 | . 15 12 . . 14 9 . . 3 . . . Robot Miss Streak 5 | . 3 . . . 4 5 . . 3 . . . Penetration Max 1 | . . . . . 1 1 . . 1 . . . Secondary Targets . | . . . . . . . . . . . . . Shots Hit Robots 276 | . 42 8 . . 131 92 . . 3 . . . Core Hits 128 | . 20 3 . . 56 44 . . 4 . . 1 Critical Kills 1 | . . . . . . 1 . . . . . . Critical Parts Destroyed 2 | . . . . . . 2 . . . . . . Critical Strikes 6 | . . . . . 1 5 . . . . . . Destroy 3 | . . . . . . 3 . . . . . . Blast 2 | . . . . . . 2 . . . . . . Corrupt 1 | . . . . . 1 . . . . . . . Melee Attacks . | . . . . . . . . . . . . . Impact . | . . . . . . . . . . . . . Slashing . | . . . . . . . . . . . . . Piercing . | . . . . . . . . . . . . . Sneak Attacks . | . . . . . . . . . . . . . Combat Hostiles . | . . . . . . . . . . . . . Follow-up Attacks . | . . . . . . . . . . . . . Damage Inflicted 5836 | . 507 139 . . 2946 2135 . . 88 . . 21 Guns 2116 | . 192 . . . 595 1241 . . 88 . . . Cannons 3588 | . 315 139 . . 2240 894 . . . . . . Explosions 93 | . . . . . 93 . . . . . . . Melee . | . . . . . . . . . . . . . Ramming 39 | . . . . . 18 . . . . . . 21 Kinetic 2020 | . 192 . . . 97 1643 . . 88 . . . Thermal 3279 | . 315 139 . . 2333 492 . . . . . . Explosive . | . . . . . . . . . . . . . Electromagnetic 498 | . . . . . 498 . . . . . . . Impact . | . . . . . . . . . . . . . Slashing . | . . . . . . . . . . . . . Piercing . | . . . . . . . . . . . . . Highest Corruption 3 | . . . . . . 3 2 2 . . . 2 Average Corruption 2 | . . . . . . 2 2 2 . . . 2 Corruption Purged 1 | . . . . . . 1 . . . . . . Corruption Blocked . | . . . . . . . . . . . . . Effects 18 | . . . . . . 13 1 3 . . . 1 Message Errors 3 | . . . . . . 2 . 1 . . . . Matter Fused 2 | . . . . . . . 1 1 . . . . Heat Flow Errors 5 | . . . . . . 3 . 1 . . . 1 Energy Discharges 4 | . . . . . . 4 . . . . . . Parts Fused 1 | . . . . . . 1 . . . . . . Data Loss (minor) 1 | . . . . . . 1 . . . . . . Weapon Failures 2 | . . . . . . 2 . . . . . . Overload Shots . | . . . . . . . . . . . . . Overflow Damage 79 | . . . . . 25 54 . . . . . . Projectiles 67 | . . . . . 13 54 . . . . . . Explosions 12 | . . . . . 12 . . . . . . . Melee . | . . . . . . . . . . . . . Knockbacks 5 | . . . . . 1 4 . . . . . . Impact 1 | . . . . . 1 . . . . . . . Kinetic 4 | . . . . . . 4 . . . . . . Secondary . | . . . . . . . . . . . . . Self-Inflicted Damage 88 | . . . . . 78 . . . . . . 10 Shots 1 | . . . . . 1 . . . . . . . Rammed 8 | . . . . . 1 . . . . . . 7 Targets Rammed 8 | . . . . . 1 . . . . . . 7 Kicked . | . . . . . . . . . . . . . Crushed . | . . . . . . . . . . . . . Highest Temperature 558 | . 150 144 . . 495 253 . 215 18 558 . 177 Average Temperature 156 | . 45 77 . . 196 65 . 119 8 308 . 102 Received Heat Transfer 2508 | . 108 33 . . 1062 336 . 12 . 828 72 57 Effects 16 | . . . . . 15 . . . . 1 . . Shutdowns 9 | . . . . . 9 . . . . . . . Energy Bleed 3 | . . . . . 3 . . . . . . . Matter Decay 2 | . . . . . 2 . . . . . . . Damage (minor) 1 | . . . . . 1 . . . . . . . Damage (major) 1 | . . . . . . . . . . 1 . . Siege Activations . | . . . . . . . . . . . . . Martial Activations . | . . . . . . . . . . . . . Shielding Activations . | . . . . . . . . . . . . . Robots Disrupted . | . . . . . . . . . . . . . Combat Hostiles . | . . . . . . . . . . . . . Robots Corrupted 1 | . . . . . 1 . . . . . . . Combat Hostiles 1 | . . . . . 1 . . . . . . . Parts Fried 1 | . . . . . 1 . . . . . . . Impact Corruptions . | . . . . . . . . . . . . . Robots Melted 1 | . . . . . 1 . . . . . . . Combat Hostiles 1 | . . . . . 1 . . . . . . . Parts Melted 12 | . 1 1 . . 9 1 . . . . . . Heat Transferred 6507 | . 666 296 . . 4595 950 . . . . . . Parts Sabotaged . | . . . . . . . . . . . . . Parts Stolen . | . . . . . . . . . . . . . Parts Stripped . | . . . . . . . . . . . . . Power Chain Reactions 1 | . . . . . 1 . . . . . . . Alert | -11 -10 -10 -10 -9 -8 -7 -7 -7 -6 -6 -6 -5 ------- Run | Yrd Mat Min Exi Min Mat Fac Was Fac Fac Ext Cet Fac Maximum Alert Level 1 | . . . . . 1 1 . . . . . . Low Security (%) 81 | 100 100 100 . 100 71 55 100 100 100 100 100 100 Level 1 18 | . . . . . 28 44 . . . . . . Level 2 . | . . . . . . . . . . . . . Level 3 . | . . . . . . . . . . . . . Level 4 . | . . . . . . . . . . . . . Level 5 . | . . . . . . . . . . . . . High Security . | . . . . . . . . . . . . . Max Security . | . . . . . . . . . . . . . Peak Influence 388 | . 60 60 . . 363 388 126 74 62 50 22 22 Initial 161 | . . . . . . 161 126 74 . . 22 . Average 96 | . 13 11 . . 157 189 116 29 15 13 11 2 Influence Increases 2599 | . 262 130 . . 1016 896 . 48 97 90 . 60 Destroy 0b10 Robot/C 1280 | . 180 100 . . 660 300 . . 40 . . . Destroy 0b10 Robot/NC 90 | . 25 . . . 30 35 . . . . . . Destroy Leader 298 | . 42 20 . . 140 86 . . 10 . . . Allied During Kill 15 | . . 10 . . 5 . . . . . . . Trap Triggered on 0b10 30 | . . . . . . 30 . . . . . . Successful Hack 110 | . 14 . . . 27 36 . 18 15 . . . Disable Machine 60 | . . . . . 30 30 . . . . . . Destroy Structure 56 | . 1 . . . 34 19 . . 2 . . . Partial Spotted 30 | . . . . . . . . 15 15 . . . Lose Combat Pursuer 630 | . . . . . 90 360 . 15 15 90 . 60 Influence Decreases 2585 | . 262 126 4 . 660 890 256 154 97 50 40 46 Entered New Map 485 | . . . 4 . . 195 236 32 . . 18 . Time Decay 1794 | . 262 106 . . 518 565 20 120 87 50 20 46 Lost Part 266 | . . . . . 122 130 . 2 10 . 2 . Lost Ally 40 | . . 20 . . 20 . . . . . . . Squads Dispatched 27 | . 2 1 . . 8 10 . . 4 . . 2 Investigation 8 | . . 1 . . 5 1 . . 1 . . . Extermination 6 | . . . . . . 4 . . 1 . . 1 Reinforcement 12 | . 2 . . . 3 4 . . 2 . . 1 Assault . | . . . . . . . . . . . . . Garrison 1 | . . . . . . 1 . . . . . . Intercept . | . . . . . . . . . . . . . Searches Triggered . | . . . . . . . . . . . . . Construction Impeded . | . . . . . . . . . . . . . Haulers Reinforced 1 | . . . . . . 1 . . . . . . Active Scanning Responses . | . . . . . . . . . . . . . Cargo Convoy Interrupts . | . . . . . . . . . . . . . Stealth | -11 -10 -10 -10 -9 -8 -7 -7 -7 -6 -6 -6 -5 --------- Run | Yrd Mat Min Exi Min Mat Fac Was Fac Fac Ext Cet Fac Distress Signals 4 | . . . . . 1 1 . . 1 . 1 . Communications Jammed . | . . . . . . . . . . . . . Distress Signals . | . . . . . . . . . . . . . Times Spotted 166 | . 18 5 . . 52 54 6 1 8 7 5 10 Peak Tracking Total 9 | . 4 3 . . 7 9 6 2 4 6 5 5 Tactical Retreats 23 | . . . . . 4 10 . 1 1 3 . 4 Traps | -11 -10 -10 -10 -9 -8 -7 -7 -7 -6 -6 -6 -5 ------- Run | Yrd Mat Min Exi Min Mat Fac Was Fac Fac Ext Cet Fac Traps Triggered 10 | . . . . . 3 6 . 1 . . . . Indirectly . | . . . . . . . . . . . . . Trap Hack Attempts . | . . . . . . . . . . . . . Triggered . | . . . . . . . . . . . . . Disarmed . | . . . . . . . . . . . . . Reprogrammed . | . . . . . . . . . . . . . Reused 3 | . . . . . . 3 . . . . . . Traps Reconfigurated 13 | . . . . . . 13 . . . . . . Traps Extracted . | . . . . . . . . . . . . . Installed . | . . . . . . . . . . . . . Triggered 3 | . . . . . . 3 . . . . . . Machines | -11 -10 -10 -10 -9 -8 -7 -7 -7 -6 -6 -6 -5 ---------- Run | Yrd Mat Min Exi Min Mat Fac Was Fac Fac Ext Cet Fac Machines Disabled 4 | . . . . . 2 2 . . . . . . Max in Single Turn 1 | . . . . . 1 1 . . . . . . Garrison Access 1 | . . . . . . . . . 1 . . . Machines Repaired . | . . . . . . . . . . . . . Machines Dismantled . | . . . . . . . . . . . . . Machines Sabotaged . | . . . . . . . . . . . . . Overloaded Fab Kills . | . . . . . . . . . . . . . Hacking | -11 -10 -10 -10 -9 -8 -7 -7 -7 -6 -6 -6 -5 --------- Run | Yrd Mat Min Exi Min Mat Fac Was Fac Fac Ext Cet Fac Machines Accessed 32 | . 3 1 1 . 9 8 . 5 5 . . . Terminals 22 | . 2 . . . 7 5 . 4 4 . . . Fabricators . | . . . . . . . . . . . . . Repair Stations 2 | . . . . . 1 1 . . . . . . Recycling Units 3 | . 1 . . . . 1 . 1 . . . . Scanalyzers 2 | . . . . . 1 1 . . . . . . Garrison Access 1 | . . . . . . . . . 1 . . . Total Hacks 77 | . 12 1 1 . 28 15 . 10 10 . . . Successful 46 | . 9 1 1 . 15 9 . 5 6 . . . Failed 31 | . 3 . . . 13 6 . 5 4 . . . Catastrophic 6 | . . . . . 1 1 . 2 2 . . . Database Lockouts . | . . . . . . . . . . . . . Manual 43 | . 4 . 1 . 19 10 . 4 5 . . . Terminals 56 | . 7 . . . 23 10 . 7 9 . . . Fabricators . | . . . . . . . . . . . . . Repair Stations 4 | . . . . . 3 1 . . . . . . Recycling Units 9 | . 5 . . . . 1 . 3 . . . . Scanalyzers 5 | . . . . . 2 3 . . . . . . Garrison Access 1 | . . . . . . . . . 1 . . . Terminal Hacks 19 | . 3 1 1 . 5 1 . 3 5 . . . Record 1 | . . . . . 1 . . . . . . . Prototype ID Bank 4 | . 1 . . . 1 1 . . 1 . . . Open Door 1 | . . 1 . . . . . . . . . . Open DSF 2 | . . . . . . . . 1 1 . . . Level Access Points 1 | . . . . . . . . 1 . . . . Alert Level 1 | . . . . . . . . . 1 . . . Recall Investigation 2 | . . . . . 1 . . . 1 . . . Hauler Manifests 3 | . 1 . . . 1 . . . 1 . . . Registered Components 1 | . . . . . 1 . . . . . . . Registered Prototypes 2 | . 1 . . . . . . 1 . . . . Proto ID Catalog 1 | . . . 1 . . . . . . . . . Fabricator Hacks . | . . . . . . . . . . . . . Repair Station Hacks 3 | . . . . . 2 1 . . . . . . Scan Component 2 | . . . . . 1 1 . . . . . . Repair 1 | . . . . . 1 . . . . . . . Recycling Unit Hacks 7 | . 4 . . . . 1 . 2 . . . . Process 2 | . 2 . . . . . . . . . . . Report Inventory 4 | . 2 . . . . 1 . 1 . . . . Retrieve Components 1 | . . . . . . . . 1 . . . . Scanalyzer 4 | . . . . . 2 2 . . . . . . Insert Component 2 | . . . . . 1 1 . . . . . . Analyze 2 | . . . . . 1 1 . . . . . . Garrison Access Hacks 1 | . . . . . . . . . 1 . . . Seal Access 1 | . . . . . . . . . 1 . . . Unauthorized Hacks 12 | . 2 . . . 6 4 . . . . . . Terminals 12 | . 2 . . . 6 4 . . . . . . Botnet 6 | . 1 . . . 2 3 . . . . . . Operators 1 | . 1 . . . . . . . . . . . Skim 5 | . . . . . 4 1 . . . . . . Fabricators . | . . . . . . . . . . . . . Repair Stations . | . . . . . . . . . . . . . Recycling Units . | . . . . . . . . . . . . . Scanalyzers . | . . . . . . . . . . . . . Garrison Access . | . . . . . . . . . . . . . Data Cores Recovered 2 | . 1 . . . . 1 . . . . . . Used . | . . . . . . . . . . . . . Hacking Detections 22 | . 2 . . . 7 6 . 4 3 . . . Full Trace Events 4 | . . . . . 2 1 . . 1 . . . Feedback Events . | . . . . . . . . . . . . . Feedback Blocked . | . . . . . . . . . . . . . Robot Schematics Acquired . | . . . . . . . . . . . . . Robots Built . | . . . . . . . . . . . . . Authchips . | . . . . . . . . . . . . . Time . | . . . . . . . . . . . . . Total Robot Build Rating . | . . . . . . . . . . . . . Part Schematics Acquired 1 | . . . . . 1 . . . . . . . Parts Built . | . . . . . . . . . . . . . Authchips . | . . . . . . . . . . . . . Time . | . . . . . . . . . . . . . Total Part Build Rating . | . . . . . . . . . . . . . Parts Repaired 1 | . . . . . 1 . . . . . . . Time 38 | . . . . . 38 . . . . . . . Parts Recycled . | . . . . . . . . . . . . . Recycled Matter 241 | . 241 . . . . . . . . . . . Retrieved Matter . | . . . . . . . . . . . . . Retrieved Components 3 | . . . . . . . . 3 . . . . Parts Scanalyzed 2 | . . . . . 1 1 . . . . . . Part Schematics Acquired 1 | . . . . . 1 . . . . . . . Parts Damaged . | . . . . . . . . . . . . . Bothacking | -11 -10 -10 -10 -9 -8 -7 -7 -7 -6 -6 -6 -5 ------------ Run | Yrd Mat Min Exi Min Mat Fac Was Fac Fac Ext Cet Fac Used RIF Installer . | . . . . . . . . . . . . . Robots Hacked . | . . . . . . . . . . . . . Non-combat . | . . . . . . . . . . . . . Combat . | . . . . . . . . . . . . . Robot Hacks Applied . | . . . . . . . . . . . . . Relay Couplers Released . | . . . . . . . . . . . . . Fabnet Peak Effective % . | . . . . . . . . . . . . . Robots Rewired . | . . . . . . . . . . . . . Allies Hacked . | . . . . . . . . . . . . . Hacks Repelled . | . . . . . . . . . . . . . Allies | -11 -10 -10 -10 -9 -8 -7 -7 -7 -6 -6 -6 -5 -------- Run | Yrd Mat Min Exi Min Mat Fac Was Fac Fac Ext Cet Fac Total Allies 3 | . . 3 . . . . . . . . . . Largest Group 3 | . . 3 2 2 2 . . . . . . . Highest-Rated Group 40 | . . 40 24 24 24 . . . . . . . Highest-Rated Ally 16 | . . 16 16 16 16 . . . . . . . Total Orders . | . . . . . . . . . . . . . Ally Attacks 27 | . . 17 . . 10 . . . . . . . Total Damage 238 | . . 185 . . 53 . . . . . . . Kills 7 | . . 3 . . 4 . . . . . . . Allies Corrupted . | . . . . . . . . . . . . . Allies Melted . | . . . . . . . . . . . . . Intel | -11 -10 -10 -10 -9 -8 -7 -7 -7 -6 -6 -6 -5 ------- Run | Yrd Mat Min Exi Min Mat Fac Was Fac Fac Ext Cet Fac Active Infowar (turns) 2601 | . 267 . . . 454 1508 . . 68 . . 304 Optics 454 | . . . . . 454 . . . . . . . Sensors 267 | . 267 . . . . . . . . . . . IFF 313 | . . . . . . . . . 68 . . 245 Structural 1508 | . . . . . . 1508 . . . . . . Machine Analysis 304 | . . . . . . . . . . . . 304 Robot Analysis Total . | . . . . . . . . . . . . . Derelict Logs Recovered 2 | . . 1 . 1 . . . . . . . . Drone Launches . | . . . . . . . . . . . . . Drone Recoveries . | . . . . . . . . . . . . . Exploration | -11 -10 -10 -10 -9 -8 -7 -7 -7 -6 -6 -6 -5 ------------- Run | Yrd Mat Min Exi Min Mat Fac Was Fac Fac Ext Cet Fac Turns Passed 8031 | 123 1289 623 549 136 2233 1688 54 280 323 162 60 511 Spaces Moved 6720 | 73 603 372 307 63 1170 2009 108 659 436 220 56 644 Core 929 | 6 . . . . . 27 108 27 . 90 27 644 Treads 1648 | 67 603 372 307 63 174 . . . . 33 29 . Legs 19 | . . . . . 19 . . . . . . . Wheels 1658 | . . . . . 977 681 . . . . . . Hover . | . . . . . . . . . . . . . Flight 2466 | . . . . . . 1301 . 632 436 97 . . Fastest Speed 20 | 50 160 160 160 160 105 20 50 37 28 28 50 50 Average Speed 90 | 150 160 160 178 214 139 55 50 39 43 57 106 51 Slowest Speed 400 | 160 160 160 240 240 400 224 50 50 112 160 160 100 Overloaded Moves 8 | . . . . . . 8 . . . . . . Propulsion Burnouts . | . . . . . . . . . . . . . Robots Hopped 38 | . . . . . . 26 . 4 7 1 . . Potential Cave-ins . | . . . . . . . . . . . . . Cave-ins Triggered . | . . . . . . . . . . . . . Exploration Rate (%) 37 | 5 55 73 61 13 57 41 73 14 10 47 23 19 Regions Visited 12 Branch Regions 5 Pre-discovered Areas 1 | . . . . 1 . . . . . . . . Known Exits Taken 2 | . . . . . 1 . . 1 . . . . Unknown Exits Taken 8 | 1 1 1 1 1 . . . . 1 1 1 . Scrap Searched 2 | . . 1 . 1 . . . . . . . . Spaces Dug 7 | . . . . . 1 6 . . . . . . Terrain Destroyed 46 | . . . . . 32 14 . . . . . . Melee . | . . . . . . . . . . . . . Projectile 34 | . . . . . 20 14 . . . . . . AOE 12 | . . . . . 12 . . . . . . . Terrain Rammed . | . . . . . . . . . . . . . Walls Destroyed . | . . . . . . . . . . . . . Machines Disabled . | . . . . . . . . . . . . . Actions | -11 -10 -10 -10 -9 -8 -7 -7 -7 -6 -6 -6 -5 --------- Run | Yrd Mat Min Exi Min Mat Fac Was Fac Fac Ext Cet Fac Total 8168 | 83 865 392 310 63 1576 2418 107 669 551 253 55 826 Wait 1008 | . 206 12 . . 236 260 . 2 97 27 . 168 Move 6637 | 72 602 371 306 62 1169 1960 107 650 422 217 55 644 Hop 34 | . . . . . . 23 . 4 6 1 . . Pick Up 54 | 5 7 2 1 . 17 16 . . 4 1 . 1 Fast Attach 37 | 5 2 . . . 11 4 . 5 5 4 . 1 Attach 37 | 1 . . . . 9 14 . 6 4 . . 3 Detach 20 | . 1 . . . 6 6 . 2 3 1 . 1 Swap 31 | . 6 1 1 1 15 6 . . 1 . . . Drop 51 | . 6 2 2 . 13 24 . . 1 2 . 1 Fire 228 | . 35 4 . . 99 82 . . 8 . . . Melee . | . . . . . . . . . . . . . Ram 8 | . . . . . 1 . . . . . . 7 Kick . | . . . . . . . . . . . . . Crush . | . . . . . . . . . . . . . Escape Stasis 23 | . . . . . . 23 . . . . . . Rewire . | . . . . . . . . . . . . . Trap . | . . . . . . . . . . . . . Miscellaneous . | . . . . . . . . . . . . . Route ------- -11/Scrapyard -10/Materials (discovered 2 exits: [*Mat] / *Min) -10/Mines (discovered 3 exits: [*Mat] / *Exi / [*Sub]) -10/Exiles -9/Mines -8/Materials (discovered 2 exits: *Fac x2) -7/Factory -7/Waste -7/Factory (discovered 6 exits: *Fac x4 / [*Sto] / [*Low]) -6/Factory -6/Extension (discovered 2 exits: *Fac / [*Cet]) -6/Cetus -5/Factory (discovered 1 exit: [*Fac]) History --------- Turn | Location | Event 4 | -11/Scrapyard | Discovered new exit (range 15) 124 | -11/Scrapyard | Entered Materials 200 | -10/Materials | Discovered new exit (range 16) 316 | -10/Materials | Build established: Mutant 767 | -10/Materials | Discovered new exit (range 15) 1413 | -10/Materials | Entered Mines 1431 | -10/Mines | Learned Materials security intel 1501 | -10/Mines | Assisted by bots powering up and referring to "LRC-V3" 1603 | -10/Mines | Discovered new exit (range 8) 1894 | -10/Mines | Met a Derelict shopkeep closing up shop 1948 | -10/Mines | Discovered new exit (range 6) 2024 | -10/Mines | Deemed a non-threat by the Exiles lab entrance 2026 | -10/Mines | Discovered new exit (range 5) 2036 | -10/Mines | Entered Exiles 2036 | -10/Exiles | Accompanied by 2 allies 2081 | -10/Exiles | Met 8R-AWN 2107 | -10/Exiles | Met EX-HEX 2166 | -10/Exiles | Met EX-BIN 2190 | -10/Exiles | Aligned with FarCom system 2192 | -10/Exiles | Given EX-Vault access code 2244 | -10/Exiles | Opened EX-Vault 2263 | -10/Exiles | Found Trap Reconfigurator 2297 | -10/Exiles | Warned to stay clear of 0b10 Research branches 2344 | -10/Exiles | Met EX-DEC 2561 | -10/Exiles | Discovered new exit (range 11) 2585 | -10/Exiles | Left Exiles lab with Trap Reconfigurator 2585 | -10/Exiles | Entered Mines 2585 | -9/Mines | Accompanied by 2 allies 2602 | -9/Mines | Discovered new exit (range 8) 2671 | -9/Mines | Met a Derelict bent on vengeance 2721 | -9/Mines | Entered Materials 2721 | -8/Materials | Accompanied by 2 allies 2721 | -8/Materials | Evolved 4 slots: Propulsion x1, Utility x3 3266 | -8/Materials | Destroyed 8 combat bots 3455 | -8/Materials | Discovered new exit (range 12) 3543 | -8/Materials | Identified exit to Factory 3787 | -8/Materials | Discovered exit to Factory (range 16) 4522 | -8/Materials | Lost 3 parts (2u1w) 4556 | -8/Materials | Repaired Imp. Heat Sink 4780 | -8/Materials | Lost 3 parts (1n1u1w) 4954 | -8/Materials | Entered Factory 4954 | -7/Factory | Evolved 2 slots: Propulsion x1, Utility x1 5126 | -7/Factory | Garrison activated, responded to threat 5292 | -7/Factory | Build established: Scavenger-Mutant 6192 | -7/Factory | Discovered new exit (range 14) 6237 | -7/Factory | Build established: Hacker-Sprinter 6540 | -7/Factory | Core integrity fell below 50% 6588 | -7/Factory | Lost 8 parts (1p1n5u1w) 6629 | -7/Factory | Released all parts (3) 6635 | -7/Factory | Core integrity fell below 20% 6642 | -7/Factory | Sucked down chute 6642 | -7/Factory | Entered Waste 6645 | -7/Waste | Spotted C-40 Crusher 6655 | -7/Waste | Spotted C-40 Crusher 6670 | -7/Waste | Spotted C-40 Crusher 6676 | -7/Waste | Spotted C-40 Crusher 6677 | -7/Waste | Spotted C-40 Crusher 6682 | -7/Waste | Discovered new exit (range 16) 6684 | -7/Waste | Spotted C-40 Crusher 6696 | -7/Waste | Entered Factory 6832 | -7/Factory | Identified exit to DSF 6875 | -7/Factory | Identified exit to Factory 6902 | -7/Factory | Discovered new exit (range 5) 6974 | -7/Factory | Discovered new exit (range 15) 6976 | -7/Factory | Entered another Factory area 6976 | -6/Factory | Evolved 2 slots: Propulsion x1, Utility x1 6989 | -6/Factory | Build established: Hacker-Mutant 7182 | -6/Factory | Discovered new exit (range 10) 7299 | -6/Factory | Entered Extension 7346 | -6/Extension | Spotted B-75 Beast 7350 | -6/Extension | Spotted B-75 Beast 7361 | -6/Extension | Core integrity fell below 50% 7394 | -6/Extension | Lost 8 parts (1p4n3u) 7396 | -6/Extension | Discovered new exit (range 16) 7397 | -6/Extension | Discovered new exit (range 14) 7461 | -6/Extension | Entered Cetus 7482 | -6/Cetus | Spotted Cetus Guard 7482 | -6/Cetus | Spotted Cetus Guard 7484 | -6/Cetus | Spotted Cetus Guard 7485 | -6/Cetus | Spotted Cetus Guard 7508 | -6/Cetus | Released all parts (4) 7512 | -6/Cetus | Core integrity fell below 20% 7513 | -6/Cetus | Discovered new exit (range 16) 7521 | -6/Cetus | Entered Factory 7521 | -5/Factory | Evolved 2 slots: Propulsion x1, Utility x1 7663 | -5/Factory | Build established: Mutant 7990 | -5/Factory | Core integrity fell below 50% 7994 | -5/Factory | Discovered new exit (range 16) 8007 | -5/Factory | Core integrity fell below 20% 8032 | -5/Factory | Destroyed by exploding Power Conduit Last Messages --------------- 07956_ R-10 Processor destroyed. 07966_ Slammed into P-70 Sage. 07966_ Destabilizing: Core damaged (-10). 07967_ Slammed into P-70 Sage. 07967_ Assembly Bed disabled. 07968_ R-10 Processor collects Com. Wheel. 07969_ >> Machine Analyzer network decryption results: 07969_ Terminal x1 07975_ IFF Parser destroyed. 07980_ >> Machine Analyzer network decryption results: 07980_ Recycling Unit x4 07989_ Knocked back. 07990_ Acquired 10 matter. 07991_ Penetrated by Slug. 07994_ EXIT=FOUND 07995_ System corrupted: Heat flow error (+217). 07995_ Slug penetrates Door. 07997_ Penetrated by Slug. 08032_ Power Conduit explodes. 08032_ P-70 Sage destroyed. Map ----- +----------------------------------------------------+ | ??????????????? #?????????????????? | | ??????????????? #?????????????????? | | ??????????????? #?????????????????? | | ??????????????? ###?#####?????????? | | ??????????????? # """ ????????? | | ??????????????? # "Y" """?????? | | ????????????????######## # """""?????? | | ???????????????????????# # """"" #???? | | ???????????????????????# #] #???? | | ???????????????????????# # """ """ #???? | | ???????????????????????+ + """"" """"" #???? | | ???????????????????????# # """"" """"" #???? | | ???????????????????????# # #???? | | ???????????????????????# # #???? | | ???????????????????????# + #???? | | ?????????????????????###+##+##################???? | | ??????????????""?????# =!p #??????????????? | | ??????????????"T?????# [%! " #??????????????? | | ??????????????""?????# *! " #??????????????? | | ?????????????????????# " #??????????????? | | ?????????????????????# " #??????????????? | | ?????????????????????# " #??????????????? | | ?????????????????????# " #??????????????? | | ?????????????????????# " #??????????????? | | ?????????????????????# " #??????????????? | | ?????????????????????# @ " #??????????????? | | ?????????????????????# #??????????????? | | ?????????????????????# #??????????????? | | ?????????????????????##############??????????????? | | ?????????????????????????????????????????????????? | | ?????????????????????????????????????????????????? | | ?????????????????????????????????????????????????? | | ????????????????????????????"""??????????????????? | | ??????????????????????????Y?"Y"??????????????????? | | ????????????????????????????"?"??????????????????? | | ????????????????????????????????"""?"""?"""??????? | | ????????????????????????????????"""?"""?"""??????? | | ????????????????????????????????"""?"""?"""??????? | | ?????????????????????????????????????????????????? | | ?????????????????????????????????????????????????? | | ?????????????????????????????????????????????????? | | ?????????????????????????????????????????????????? | | ?????????????????????????????????????????????????? | | ?????????????????????????????????????????????????? | | ?????????????????????????????????????????????????? | | ?????????????????????????????????????????????????? | | ?????????????????????????????????????????????????? | | ?????????????????????????????????????????????????? | | ?????????????????????????????????????????????????? | | ?????????????????????????????????????????????????? | +----------------------------------------------------+ Best States ------------- Heat Dissipation 59 Energy Generation 25 Energy Capacity 300 Matter Stores 300 Matter Capacity 300 Sight Range 20 Robot Scan Range 14 Terrain Scan Density 10 Additional Mass Support 9 Armor Coverage 450 Phase Shifting 5 Evasion (%) 67 Recoil Reduction 2 Offensive Hacking 42 Item Schematics ----------------- Hacking Suite | -8/Materials | Scanalyzed Robot Schematics ------------------ None Fabricated ------------ Nothing Repaired ---------- Imp. Heat Sink | 12% | -8/Materials Alien Tech Used ----------------- None Achievements -------------- None Challenges ------------ None Game ------ Seed DisruptionThrowingEngine Manual? 0 Play Time 01:24:53 Cumulative 23.7 hours Start 2025.10.08 @ 15:15:36 End 2025.10.08 @ 16:37:40 Sessions 1 Manual Loads 0 Difficulty Rogue Special Mode None Game No. 63 Rogue 56 Adventurer 7 Explorer 0 Win Type - Total 0 Types 0/0/0/0/0/0/0/0/0/0 Lore% 5 Gallery% 21 Achievement% 21 Wizard Run 0 Options --------- Layout 0 ASCII 0 Keyboard 1 Movement Vi Keybinds 0 Fullscreen 1 Font 18/SmallcapsGlow Map View 112x50 Zoom Use 0% Tactical HUD 1 Map Filters NONE Filters NONE Steam 1 RUN: 7d8f54dc-ec51-4151-a828-b2d63d28e029